[Event "German-ch Blitz Women 2022"]
[Site "Magdeburg"]
[Date "2022.08.13"]
[Round "9.1"]
[White "Falke, Ornella"]
[Black "Paehtz, Elisabeth"]
[Result "0-1"]
[ECO "E62"]
[WhiteElo "1912"]
[BlackElo "2484"]
[Annotator "TA"]
[PlyCount "58"]
[EventDate "2022.08.10"]
[EventType "tourn"]
[EventCountry "GER"]
[SourceTitle "playchess.com"]
[Source "ChessBase"]
[SourceQuality "1"]
[TimeControl "180+2"]

{[%evp 19,58,30,52,0,21,19,20,18,96,53,35,39,47,42,72,33,27,0,0,-77,-84,-110,-110,-144,-145,-138,-138,-141,-138,-458,-450,-509,-541,-523,-519,-528,-525,-512,-510,-665,-652]} 1. d4 {[%emt 0:00:01]} Nf6 {[%emt 0:00:02]} 2. Nf3 {[%emt 0:00:03]} g6 {[%emt 0:00:01]} 3. g3 {[%emt 0:00:06]} Bg7 {[%emt 0:00:02]} 4. Bg2 {[%emt 0:00:01]} O-O {[%emt 0:00:01]} 5. O-O {[%emt 0:00:03]} d6 {[%emt 0:00:01]} 6. c4 {[%emt 0:00:08]} Nc6 {[%emt 0:00:01]} 7. Nc3 {[%emt 0:00:02]} Bg4 {[%emt 0:00:02]} 8. h3 {[%emt 0:00:17]} Bxf3 {[%emt 0:00:01]} 9. Bxf3 {[%emt 0:00:01]} Nd7 {[%emt 0:00:01]} 10. e3 {[%emt 0:00:05]} e5 {[%emt 0:00:01][%cal Re5d4]} 11. Ne2 {[%emt 0:00:11] E62: King's Indian: Fianchetto: 6...c6 and Panno Variation (6...Nc6) without ...a6.} (11. d5 $14 Ncb8 12. e4) 11... Qe7 {[%emt 0:00:14] [#]} 12. Rb1 $146 {[%emt 0:00:10]} ({Predecessor:} 12. b4 e4 13. Bg2 Nxb4 14. Rb1 Nc6 15. Rxb7 Nb6 16. Qc2 Nd8 17. Bxe4 Nxb7 18. Bxb7 Rab8 {1-0 (35) Franck,R-Scheipl,R (2270) Freudenstadt 1996}) 12... Qf6 {[%emt 0:00:14]} 13. Bg2 {[%emt 0:00:39] The position is equal.} Rae8 {[%emt 0:00:15]} (13... exd4 $11 {remains equal.} 14. Nxd4 Nxd4 15. exd4 Qxd4) 14. b4 {[%emt 0:00:11]} exd4 {[%emt 0:00:07]} 15. Nxd4 {[%emt 0:00:18]} Nxd4 {[%emt 0:00:03]} 16. exd4 {[%emt 0:00:01]} c6 {[%emt 0:00:16]} 17. Be3 {[%emt 0:00:02]} Nb6 {[%emt 0:00:01][%cal Bd7b6,Bb6c4,Bc4b2,Bb2d1][%mdl 32]} 18. Qd3 {[%emt 0:00:02]} (18. Qb3 $5 {[%cal Rc4c5]}) 18... d5 {[%emt 0:00:01]} 19. c5 {[%emt 0:00:26]} (19. cxd5 $1 $11 Nxd5 20. Bxd5 cxd5 21. Kg2) 19... Nc4 $17 {[%emt 0:00:01]} 20. Rbd1 {[%emt 0:00:08]} Nb2 {[%emt 0:00:03][%csl LRd1,LRd3] Black is more active.} 21. Qa3 {[%emt 0:00:09]} Nxd1 {[%emt 0:00:02]} 22. Rxd1 {[%emt 0:00:01]} a6 {[%emt 0:00:02]} 23. Qc1 {[%emt 0:00:05]} Qe6 {[%emt 0:00:06]} 24. Re1 $2 {[%emt 0:00:08][%mdl 8192] [#] White does not recover from this.} (24. a3 $17 {is tougher.}) 24... Bxd4 $3 $19 {[%emt 0:00:08][%mdl 512] Black is clearly winning.} 25. Kf1 {[%emt 0:00:15]} (25. a3 Qe5) 25... Bxe3 {[%emt 0:00:04]} 26. Rxe3 {[%emt 0:00:01]} Qf6 {[%emt 0:00:02]} 27. Rf3 {[%emt 0:00:02]} Qe5 {[%emt 0:00:04]} 28. Re3 {[%emt 0:00:11]} Qd4 {[%emt 0:00:04]} 29. Rxe8 Rxe8 {Weighted Error Value: White=0.55/Black=0.13 (very precise)} 0-1

[Event "German-ch Blitz Women 2022"]
[Site "Magdeburg"]
[Date "2022.08.13"]
[Round "9.2"]
[White "Kosovska, Olena"]
[Black "Stangl, Anita"]
[Result "0-1"]
[ECO "C05"]
[WhiteElo "1831"]
[BlackElo "2023"]
[Annotator "NA RC"]
[PlyCount "81"]
[EventDate "2022.08.10"]
[EventType "tourn"]
[EventCountry "GER"]
[SourceTitle "playchess.com"]
[Source "ChessBase"]
[SourceQuality "1"]
[TimeControl "180+2"]

1. e4 {[%emt 0:00:01]} e6 {[%emt 0:00:00]} 2. d4 {[%emt 0:00:01]} d5 {[%emt 0:00:01]} 3. Nd2 {[%emt 0:00:03]} Nf6 {[%emt 0:00:00]} 4. e5 {[%emt 0:00:01]} Nfd7 {[%emt 0:00:01]} 5. f4 {[%emt 0:00:01]} c5 {[%emt 0:00:00]} 6. Ngf3 {[%emt 0:00:05]} Nc6 {[%emt 0:00:01]} 7. c3 {[%emt 0:00:02]} Qb6 {[%emt 0:00:01]} 8. Nb3 {[%emt 0:00:04]} a5 {[%emt 0:00:05]} 9. a4 {[%emt 0:00:23]} Be7 {[%emt 0:00:13]} 10. Be2 {[%emt 0:00:02]} O-O {[%emt 0:00:09]} 11. O-O {[%emt 0:00:03]} f6 {[%emt 0:00:05]} 12. Kh1 {[%emt 0:00:12]} Qc7 {[%emt 0:00:34]} 13. exf6 {[%emt 0:00:24]} Rxf6 {[%emt 0:00:02]} 14. Ne5 {[%emt 0:00:13]} c4 {[%emt 0:00:30]} 15. Nd2 {[%emt 0:00:03]} b6 {[%emt 0:00:05]} 16. Ndf3 {[%emt 0:00:04]} Ba6 {[%emt 0:00:08]} 17. Ng4 {[%emt 0:00:12]} Rff8 {[%emt 0:00:08]} 18. Qe1 {[%emt 0:00:09]} Nf6 {[%emt 0:00:10]} 19. Ng5 {[%emt 0:00:09]} Nd8 {[%emt 0:00:12]} 20. Ne5 {[%emt 0:00:14]} h6 {[%emt 0:00:10]} 21. Ngf3 {[%emt 0:00:11]} Ne4 {[%emt 0:00:04]} 22. Ng6 {[%emt 0:00:19]} Rf6 {[%emt 0:00:08]} 23. Nxe7+ {[%emt 0:00:08]} Qxe7 {[%emt 0:00:01]} 24. Ne5 {[%emt 0:00:03]} Nf7 {[%emt 0:00:07]} 25. Bf3 {[%emt 0:00:02]} Nfd6 {[%emt 0:00:01]} 26. g3 {[%emt 0:00:21]} b5 {[%emt 0:00:01]} 27. Qe2 {[%emt 0:00:06]} b4 {[%emt 0:00:04]} 28. cxb4 {[%emt 0:00:03]} axb4 {[%emt 0:00:01]} 29. Qg2 {[%emt 0:00:04]} c3 {[%emt 0:00:04]} 30. Re1 {[%emt 0:00:02]} Nc4 {[%emt 0:00:08]} 31. bxc3 {[%emt 0:00:05]} Nxc3 {[%emt 0:00:06]} 32. Nc6 {[%emt 0:00:03]} Qd6 {[%emt 0:00:05]} 33. Ne5 {[%emt 0:00:05]} Rb8 {[%emt 0:00:09]} 34. Bb2 {[%emt 0:00:04]} Nxb2 {[%emt 0:00:05]} 35. Qxb2 {[%emt 0:00:01]} Rff8 {[%emt 0:00:16]} 36. a5 {[%emt 0:00:01]} Rfc8 {[%emt 0:00:05]} 37. Qg2 {[%emt 0:00:02]} b3 {[%emt 0:00:04]} 38. Qh3 {[%emt 0:00:06]} b2 {[%emt 0:00:02]} 39. Rab1 {[%emt 0:00:01]} Nxb1 {[%emt 0:00:01]} 40. Rxb1 {[%emt 0:00:00]} Rc1+ {[%emt 0:00:05]} 41. Kg2 0-1

[Event "German-ch Blitz Women 2022"]
[Site "Magdeburg"]
[Date "2022.08.13"]
[Round "9.3"]
[White "Leveikina, Jevgenija"]
[Black "Wulf, Constanze"]
[Result "1-0"]
[ECO "D02"]
[WhiteElo "2061"]
[BlackElo "1835"]
[Annotator "NA RC"]
[PlyCount "61"]
[EventDate "2022.08.10"]
[EventType "tourn"]
[EventCountry "GER"]
[SourceTitle "playchess.com"]
[Source "ChessBase"]
[SourceQuality "1"]
[TimeControl "180+2"]

1. d4 {[%emt 0:00:01]} d5 {[%emt 0:00:00]} 2. Nf3 {[%emt 0:00:01]} c6 {[%emt 0:00:03]} 3. c4 {[%emt 0:00:02]} e6 {[%emt 0:00:02]} 4. cxd5 {[%emt 0:00:01]} exd5 {[%emt 0:00:01]} 5. Nc3 {[%emt 0:00:01]} Bf5 {[%emt 0:00:06]} 6. Bf4 {[%emt 0:00:03]} Nd7 {[%emt 0:00:04]} 7. e3 {[%emt 0:00:01]} Ngf6 {[%emt 0:00:02]} 8. Bd3 {[%emt 0:00:01]} Bxd3 {[%emt 0:00:04]} 9. Qxd3 {[%emt 0:00:01]} Be7 {[%emt 0:00:06]} 10. O-O {[%emt 0:00:02]} Nh5 {[%emt 0:00:07]} 11. Bg3 {[%emt 0:00:08]} O-O {[%emt 0:00:07]} 12. a3 {[%emt 0:00:01]} Nxg3 {[%emt 0:00:16]} 13. hxg3 {[%emt 0:00:01]} Re8 {[%emt 0:00:19]} 14. b4 {[%emt 0:00:02]} a6 {[%emt 0:00:40]} 15. Rab1 {[%emt 0:00:03]} b5 {[%emt 0:00:21]} 16. Rfc1 {[%emt 0:00:06]} Nb6 {[%emt 0:00:04]} 17. Ne5 {[%emt 0:00:02]} Qd6 {[%emt 0:00:10]} 18. e4 {[%emt 0:00:13]} Nc4 {[%emt 0:00:09]} 19. Nxc4 {[%emt 0:00:10]} bxc4 {[%emt 0:00:19]} 20. Qc2 {[%emt 0:00:29]} Reb8 {[%emt 0:00:17]} 21. e5 {[%emt 0:00:11]} Qe6 {[%emt 0:00:05]} 22. Ne2 {[%emt 0:00:03]} a5 {[%emt 0:00:03]} 23. Nf4 {[%emt 0:00:05]} Qg4 {[%emt 0:00:07]} 24. bxa5 {[%emt 0:00:25]} Bxa3 {[%emt 0:00:05]} 25. Rxb8+ {[%emt 0:00:41]} Rxb8 {[%emt 0:00:01]} 26. Rb1 {[%emt 0:00:06]} Qc8 {[%emt 0:00:09]} 27. Rxb8 {[%emt 0:00:08]} Qxb8 {[%emt 0:00:01]} 28. Qa4 {[%emt 0:00:03]} Bb2 {[%emt 0:00:06]} 29. Qxc6 {[%emt 0:00:16]} Qd8 {[%emt 0:00:03]} 30. a6 {[%emt 0:00:09]} g6 {[%emt 0:00:01]} 31. a7 {[%emt 0:00:01]} 1-0

[Event "German-ch Blitz Women 2022"]
[Site "Magdeburg"]
[Date "2022.08.13"]
[Round "9.4"]
[White "Heil, Marina"]
[Black "Doll, Rebecca"]
[Result "1-0"]
[ECO "D31"]
[WhiteElo "1926"]
[BlackElo "1933"]
[Annotator "TA"]
[PlyCount "55"]
[EventDate "2022.08.10"]
[EventType "tourn"]
[EventCountry "GER"]
[SourceTitle "playchess.com"]
[Source "ChessBase"]
[SourceQuality "1"]
[TimeControl "180+2"]

{[%evp 9,55,29,23,-6,15,0,0,0,-5,-2,0,-6,0,4,2,4,25,7,0,-14,82,4,10,0,15,-24,-6,-20,-17,-188,-86,-101,-98,-80,54,51,918,539,843,832,972,954,2107,1964,29989,2370,2143,1940]} 1. c4 {[%emt 0:00:01]} e6 {[%emt 0:00:01]} 2. Nc3 {[%emt 0:00:01]} d5 {[%emt 0:00:03]} 3. d4 {[%emt 0:00:03]} Be7 {[%emt 0:00:02]} 4. Bf4 {[%emt 0:00:03]} Nf6 {[%emt 0:00:09]} 5. e3 {[%emt 0:00:08]} O-O {[%emt 0:00:12]} 6. h3 {[%emt 0:00:09] D35: Queen's Gambit Declined: Exchange Variation.} a6 {[%emt 0:00:13]} 7. Nf3 {[%emt 0:00:04]} dxc4 {[%emt 0:00:19]} 8. Bxc4 {[%emt 0:00:02] The position is equal.} b5 {[%emt 0:00:01]} 9. Be2 {[%emt 0:00:08]} Bb7 {[%emt 0:00:04]} 10. O-O {[%emt 0:00:04]} c5 {[%emt 0:00:07] [#]} 11. dxc5 $146 {[%emt 0:00:28]} ({Predecessor:} 11. Rc1 Nbd7 12. dxc5 Nxc5 13. a3 Nd5 14. Be5 Rc8 15. b4 Nd7 16. Nxd5 Bxd5 17. Bd4 {0-1 (39) Remmeke,H (2149)-Wilger,F (2088) Germany 2012}) 11... Bxc5 {[%emt 0:00:10]} 12. Rc1 {[%emt 0:00:01][%cal Oc3b5]} Qe7 {[%emt 0:00:06]} 13. a3 {[%emt 0:00:07]} Rd8 {[%emt 0:00:17]} 14. Qc2 {[%emt 0:00:09][%cal Oc3b5]} Nc6 {[%emt 0:00:19] [#]} (14... Nbd7 $11 {keeps the balance.}) 15. b4 {[%emt 0:00:09]} (15. Nxb5 $1 $16 {Black must now prevent Nc7.} axb5 (15... Bxe3 16. fxe3) 16. Qxc5) 15... Bd6 $11 {[%emt 0:00:04]} 16. Bg5 {[%emt 0:00:05]} h6 {[%emt 0:00:18]} 17. Bh4 {[%emt 0:00:01]} (17. Bxf6 $5 Qxf6 18. Rfd1 $11) 17... Ne5 {[%emt 0:00:03]} 18. Nxe5 {[%emt 0:00:16]} Bxe5 {[%emt 0:00:01]} 19. Qb3 $2 {[%emt 0:00:23]} (19. f4 $11 {and White stays safe.} Bc7 {[#]} 20. Nxb5 $1) 19... g5 {[%emt 0:00:08]} (19... Rd2 $19 {and Black stays clearly on top. Strongly threatening ...Bxc3.} 20. Rfd1 Rad8 21. Rxd2 Rxd2) 20. Bg3 $17 {[%emt 0:00:02]} Bxg3 {[%emt 0:00:11]} 21. fxg3 {[%emt 0:00:01]} Nd5 {[%emt 0:00:03]} ({Better is} 21... Rd2 $17 {[%cal Og5g4] Hoping for ...g4!} 22. Rf2 Rc8) 22. Ne4 $1 $14 {[%emt 0:00:14]} Nxe3 $2 {[%emt 0:00:10][%mdl 8192]} 23. Qxe3 {[%emt 0:00:11]} f5 {[%emt 0:00:14]} 24. Nc5 {[%emt 0:00:05]} Bd5 {[%emt 0:00:05]} 25. Rxf5 {[%emt 0:00:08]} Qd6 {[%emt 0:00:11]} 26. Rf6 {[%emt 0:00:17][%csl LRe6,LRh6]} Qe7 {[%emt 0:00:05]} 27. Rxh6 {[%emt 0:00:03]} (27. Rg6+ $142 Qg7 28. Rxg7+ Kxg7 29. Nxe6+ Bxe6 30. Qe5+ Kh7 31. Rc7+ Bd7 32. Qe7+ Kg8 33. Bd3) 27... Qg7 {[%emt 0:00:03]} 28. Rh5 {[%emt 0:00:04] Weighted Error Value: White=0.54/Black=0.75} 1-0

[Event "German-ch Blitz Women 2022"]
[Site "Magdeburg"]
[Date "2022.08.13"]
[Round "9.5"]
[White "Fock, Sana"]
[Black "Kunze, Kerstin"]
[Result "0-1"]
[ECO "C28"]
[WhiteElo "1807"]
[BlackElo "2020"]
[Annotator "TA"]
[PlyCount "84"]
[EventDate "2022.08.10"]
[EventType "tourn"]
[EventCountry "GER"]
[SourceTitle "playchess.com"]
[Source "ChessBase"]
[SourceQuality "1"]
[TimeControl "180+2"]

{[%evp 9,84,9,7,8,25,11,44,44,58,68,84,87,93,93,207,196,629,269,257,101,99,3,4,12,13,10,22,11,6,4,11,-6,-8,-11,-4,-11,0,-80,-97,-86,0,-3,0,0,0,-302,-302,-297,-285,-287,-216,-267,-133,-142,-125,-213,0,0,0,-231,-226,-290,-287,-726,-714,-885,-853,-1882,-1501,-12834,-12835,-12835,-12837,-12837,-12838,-5152,-4994]} 1. e4 {[%emt 0:00:01]} e5 {[%emt 0:00:01]} 2. Nc3 {[%emt 0:00:02]} Nc6 {[%emt 0:00:01]} 3. Bc4 {[%emt 0:00:02]} Nf6 {[%emt 0:00:02]} 4. d3 {[%emt 0:00:02]} Be7 {[%emt 0:00:02]} 5. Nge2 {[%emt 0:00:05]} O-O {[%emt 0:00:02]} 6. O-O {[%emt 0:00:02] C28: Vienna Game: 2...Nf6 3 Bc4 Nc6.} a6 {[%emt 0:00:09]} 7. a3 {[%emt 0:00:05] [#]} h6 $146 {[%emt 0:00:25]} ({Predecessor:} 7... d6 8. f4 exf4 9. Bxf4 Bg4 10. Qd2 b5 11. Ba2 Ne5 12. Nd5 Nxd5 13. Bxd5 Rb8 14. Bxe5 dxe5 15. Ng3 Qd6 16. b4 c6 17. Ba2 Rbd8 18. Nf5 Bxf5 19. Rxf5 Qd4+ {0-1 (19) Fedotov,A (1823)-Kravchenko,A (1925) Tula 2016}) 8. f4 {[%emt 0:00:05] White is slightly better.} Bc5+ {[%emt 0:00:19]} 9. Kh1 {[%emt 0:00:18]} Ng4 {[%emt 0:00:05][%cal Og4h2]} 10. Qe1 {[%emt 0:00:02] Qg3 is the strong threat.} exf4 {[%emt 0:00:27]} 11. Bxf4 {[%emt 0:00:14]} Nge5 {[%emt 0:00:22] [#]} (11... d6 $16) 12. Qg3 $1 $18 {[%emt 0:00:22][%csl LRe5,LRh6]} Qf6 {[%emt 0:00:38]} (12... Nxc4 $2 13. Bxh6 (13. Bxc7 Qxc7 14. Qxc7 Bd6 $16) 13... g6 14. dxc4 $18) (12... d6 13. Bxh6 Bg4) 13. Be3 {[%emt 0:00:30]} (13. Nd5 $142 Qd6 14. d4) 13... Qd6 {[%emt 0:00:02]} 14. Nd5 $2 {[%emt 0:00:16]} (14. Bxc5 $18 Qxc5 15. b4) 14... Bxe3 $16 {[%emt 0:00:04]} 15. Nxe3 {[%emt 0:00:08]} (15. Qxe3 $16 {aiming for Ba2.} Nxc4 16. dxc4) 15... Nxc4 $11 {[%emt 0:00:01]} 16. Nxc4 {[%emt 0:00:04]} Qxg3 {[%emt 0:00:01]} 17. Nxg3 {[%emt 0:00:01]} Nd4 {[%emt 0:00:02]} 18. c3 {[%emt 0:00:13]} Nb3 {[%emt 0:00:02] Hoping for ...b5.} 19. Rae1 {[%emt 0:00:11]} d6 {[%emt 0:00:02][%cal Bd7d6,Bd6d5][%mdl 32]} 20. Nf5 {[%emt 0:00:06]} Bxf5 {[%emt 0:00:04]} 21. Rxf5 {[%emt 0:00:01]} Rfe8 {[%emt 0:00:05]} 22. Ref1 {[%emt 0:00:03]} Re7 {[%emt 0:00:01]} 23. e5 {[%emt 0:00:05]} (23. Ne3 $11 {remains equal.}) 23... d5 $17 {[%emt 0:00:08]} 24. Ne3 {[%emt 0:00:02] [#]} c6 {[%emt 0:00:03]} (24... d4 $1 $17 {[%cal Rd4e3]} 25. Nd5 Rd7) 25. h3 {[%emt 0:00:05]} Nc5 {[%emt 0:00:03]} 26. d4 {[%emt 0:00:04]} Ne4 {[%emt 0:00:00] Threatens to win with ...Ng3+.} 27. c4 $2 {[%emt 0:00:09][%mdl 8192]} (27. Kh2 $11 {and White is okay.}) 27... Ng3+ $19 {[%emt 0:00:01]} 28. Kh2 {[%emt 0:00:02]} Nxf1+ {[%emt 0:00:01]} 29. Rxf1 {[%emt 0:00:02][%mdl 4096] Endgame KRR-KRN} Rd8 {[%emt 0:00:06]} 30. Nf5 {[%emt 0:00:04]} Red7 {[%emt 0:00:04]} (30... Re6 $19 31. c5 f6 32. exf6 Rxf6 33. Ne7+ Kf7) 31. c5 $17 {[%emt 0:00:01]} b6 {[%emt 0:00:03]} 32. b4 {[%emt 0:00:02]} (32. cxb6 $17 Rb7 33. b4) 32... a5 $2 {[%emt 0:00:03]} (32... bxc5 $19 {And now ...c4 would win.} 33. bxc5 Rb8) 33. cxb6 $11 {[%emt 0:00:05]} axb4 {[%emt 0:00:01]} 34. axb4 $2 {[%emt 0:00:01]} (34. a4 $1 $11 {and White has nothing to worry.}) 34... Rb8 $19 {[%emt 0:00:02]} 35. Rc1 {[%emt 0:00:06]} Rxb6 {[%emt 0:00:01]} 36. b5 $2 {[%emt 0:00:04]} (36. Rc3 Kh7 37. Rb3) 36... cxb5 {[%emt 0:00:04][%cal Bc6b5,Bb5b4,Bb4b3,Bb3b2][%mdl 32] Black is clearly winning.} 37. Rc8+ {[%emt 0:00:03]} Kh7 {[%emt 0:00:00]} 38. Nd6 {[%emt 0:00:05]} b4 {[%emt 0:00:03] White must now prevent ...b3.} 39. Rc1 {[%emt 0:00:12]} b3 {[%emt 0:00:01]} 40. Rb1 {[%emt 0:00:01]} b2 {[%emt 0:00:03]} 41. Nf5 {[%emt 0:00:06]} Rc7 {[%emt 0:00:02]} 42. Ne3 {[%emt 0:00:07]} Rc1 {[%emt 0:00:03] What a bad dream for White.  Weighted Error Value: White=1.04/Black=0.36} 0-1

[Event "German-ch Blitz Women 2022"]
[Site "Magdeburg"]
[Date "2022.08.13"]
[Round "9.6"]
[White "Schuster, Rebekka"]
[Black "Rath, Alina"]
[Result "0-1"]
[ECO "B56"]
[WhiteElo "1815"]
[BlackElo "2062"]
[Annotator "NA RC"]
[PlyCount "56"]
[EventDate "2022.08.10"]
[EventType "tourn"]
[EventCountry "GER"]
[SourceTitle "playchess.com"]
[Source "ChessBase"]
[SourceQuality "1"]
[TimeControl "180+2"]

1. e4 c5 2. Nf3 Nc6 3. d4 cxd4 4. Nxd4 Nf6 5. Nc3 d6 6. f3 e5 7. Nb3 Be7 8. Be3 Be6 9. Qd2 O-O 10. O-O-O a5 11. Kb1 Re8 12. Nb5 d5 13. exd5 Nxd5 14. Bf2 a4 15. Nc5 Bxc5 16. Bxc5 Nf4 17. g3 Nd5 18. Bg2 Nde7 19. Nd6 Rf8 20. Rhe1 Qc7 21. Nb5 Qa5 22. Qxa5 Rxa5 23. c4 f6 24. Bd6 Bxc4 25. Nc3 Bf7 26. f4 Re8 27. Bc7 Raa8 28. fxe5 fxe5 0-1

[Event "German-ch Blitz Women 2022"]
[Site "Magdeburg"]
[Date "2022.08.13"]
[Round "9.7"]
[White "Zschischang, Marine"]
[Black "Skibbe, Diana"]
[Result "1-0"]
[ECO "A80"]
[WhiteElo "2083"]
[BlackElo "1943"]
[Annotator "NA RC"]
[PlyCount "67"]
[EventDate "2022.08.10"]
[EventType "tourn"]
[EventCountry "GER"]
[SourceTitle "playchess.com"]
[Source "ChessBase"]
[SourceQuality "1"]
[TimeControl "180+2"]

1. d4 {[%emt 0:00:00]} f5 {[%emt 0:00:01]} 2. h3 {[%emt 0:00:02]} Nf6 {[%emt 0:00:02]} 3. g4 {[%emt 0:00:00]} fxg4 {[%emt 0:00:03]} 4. hxg4 {[%emt 0:00:01]} d6 {[%emt 0:00:03]} 5. g5 {[%emt 0:00:01]} Ne4 {[%emt 0:00:10]} 6. Bf4 {[%emt 0:00:07]} g6 {[%emt 0:00:02]} 7. f3 {[%emt 0:00:04]} e5 {[%emt 0:00:13]} 8. dxe5 {[%emt 0:00:03]} Nxg5 {[%emt 0:00:03]} 9. exd6 {[%emt 0:00:08]} Bxd6 {[%emt 0:00:04]} 10. Bxd6 {[%emt 0:00:13]} cxd6 {[%emt 0:00:02]} 11. Qd4 {[%emt 0:00:10]} O-O {[%emt 0:00:10]} 12. Nc3 {[%emt 0:00:29]} Nc6 {[%emt 0:00:01]} 13. Qh4 {[%emt 0:00:01]} Qf6 {[%emt 0:00:21]} 14. O-O-O {[%emt 0:00:23]} Qf4+ {[%emt 0:00:16]} 15. Qxf4 {[%emt 0:00:02]} Rxf4 {[%emt 0:00:01]} 16. Rxd6 {[%emt 0:00:06]} Be6 {[%emt 0:00:11]} 17. e3 {[%emt 0:00:19]} Rf6 {[%emt 0:00:02]} 18. f4 {[%emt 0:00:04]} Nf7 {[%emt 0:00:05]} 19. Rd2 {[%emt 0:00:08]} Bg4 {[%emt 0:00:07]} 20. Bc4 {[%emt 0:00:08]} Na5 {[%emt 0:00:07]} 21. Bd5 {[%emt 0:00:06]} Re8 {[%emt 0:00:05]} 22. Ne4 {[%emt 0:00:09]} Rb6 {[%emt 0:00:04]} 23. Nh3 {[%emt 0:00:17]} Bf3 {[%emt 0:00:07]} 24. Bxf7+ {[%emt 0:00:09]} Kxf7 {[%emt 0:00:02]} 25. Nhg5+ Kg8 {[%emt 0:00:12]} 26. Nf6+ {[%emt 0:00:04]} Rxf6 {[%emt 0:00:02]} 27. Nxf3 {[%emt 0:00:02]} Rxe3 {[%emt 0:00:02]} 28. Ng5 {[%emt 0:00:07]} Rxf4 {[%emt 0:00:07]} 29. b3 {[%emt 0:00:04]} Nc6 {[%emt 0:00:01]} 30. Rxh7 {[%emt 0:00:09]} Rf5 {[%emt 0:00:02]} 31. Rxb7 {[%emt 0:00:17]} Rxg5 {[%emt 0:00:01]} 32. Rc7 {[%emt 0:00:03]} Re1+ {[%emt 0:00:04]} 33. Kb2 {[%emt 0:00:02]} Ne5 {[%emt 0:00:05]} 34. Rd8# {[%emt 0:00:01]} 1-0

[Event "German-ch Blitz Women 2022"]
[Site "Magdeburg"]
[Date "2022.08.13"]
[Round "9.8"]
[White "Staerk, Elisa"]
[Black "Braun, Kristin"]
[Result "1/2-1/2"]
[ECO "E98"]
[WhiteElo "1947"]
[BlackElo "1897"]
[Annotator "TA"]
[PlyCount "94"]
[EventDate "2022.08.10"]
[EventType "tourn"]
[EventCountry "GER"]
[SourceTitle "playchess.com"]
[Source "ChessBase"]
[SourceQuality "1"]
[TimeControl "180+2"]

{[%evp 23,94,26,38,28,51,45,46,54,112,26,39,31,95,92,101,60,102,76,104,90,138,41,172,164,173,167,191,48,52,30,30,29,30,9,10,-10,-10,-10,0,0,14,0,14,14,55,0,0,0,0,0,0,0,0,0,0,0,0,0,0,0,0,0,0,0,0,0,0,0,0,0,0,0,7]} 1. d4 {[%emt 0:00:01]} Nf6 {[%emt 0:00:00]} 2. Nf3 {[%emt 0:00:01]} g6 {[%emt 0:00:01]} 3. c4 {[%emt 0:00:00]} Bg7 {[%emt 0:00:00]} 4. Nc3 d6 5. e4 {[%emt 0:00:02]} O-O {[%emt 0:00:02]} 6. Be2 {[%emt 0:00:00]} e5 {[%emt 0:00:00]} 7. O-O {[%emt 0:00:01]} Nc6 {[%emt 0:00:01]} 8. d5 {[%emt 0:00:01]} Ne7 {[%emt 0:00:02]} 9. Ne1 {[%emt 0:00:01]} Nd7 10. Nd3 {[%emt 0:00:00]} f5 {[%emt 0:00:02]} 11. Bd2 {[%emt 0:00:01]} f4 {[%emt 0:00:03]} 12. Bg4 {[%emt 0:00:01]} Nf6 {[%emt 0:00:09]} 13. Bxc8 {[%emt 0:00:01] E98: King's Indian: Classical Main Line: 9 Ne1.} Qxc8 {[%emt 0:00:01]} 14. f3 {[%emt 0:00:01]} g5 {[%emt 0:00:02]} 15. c5 {[%emt 0:00:04] White is slightly better.} g4 {[%emt 0:00:26] [#]} (15... Qd7 $14) 16. cxd6 {[%emt 0:00:02]} (16. fxg4 $1 $16 {And now cxd6 would win.} h6 17. h3) 16... cxd6 $11 {[%emt 0:00:01] [#]} 17. fxg4 $146 {[%emt 0:00:22]} ({Predecessor:} 17. Rc1 Qd7 18. Qa4 Qxa4 19. Nxa4 gxf3 20. gxf3 Rfc8 21. Rxc8+ Rxc8 22. Rc1 Kf7 23. Kf1 {½-½ (52) Anelli,A-Jovanovich,M Buenos Aires 1971}) 17... Qxg4 {[%emt 0:00:15]} ({Black should try} 17... Nxg4 $14 18. Nb5 Qc4 19. Qxg4 Qxb5 20. Qe6+ Rf7) 18. Qxg4 $16 {[%emt 0:00:01]} Nxg4 {[%emt 0:00:01]} 19. Nf2 {[%emt 0:00:05]} h5 {[%emt 0:00:07]} 20. Nb5 {[%emt 0:00:08]} Rf6 {[%emt 0:00:24]} 21. Nc7 {[%emt 0:00:06]} Rc8 {[%emt 0:00:26]} ({Black should play} 21... Rd8) 22. Rac1 {[%emt 0:00:02]} ({Only move:} 22. Nxg4 $16 hxg4 23. Rac1) 22... Ng6 {[%emt 0:00:29]} ({Better is} 22... Ne3 $14) 23. Ne6 $18 {[%emt 0:00:09]} Rxc1 {[%emt 0:00:15]} 24. Rxc1 {[%emt 0:00:01]} Ne3 {[%emt 0:00:01]} 25. Nxg7 {[%emt 0:00:13]} (25. Nh3 $18) 25... Kxg7 $14 {[%emt 0:00:02]} 26. Rc7+ {[%emt 0:00:01]} Rf7 {[%emt 0:00:01]} 27. Rxf7+ {[%emt 0:00:08]} Kxf7 $11 {[%emt 0:00:01][%mdl 4096] Endgame KBN-KNN} 28. b3 {[%emt 0:00:26]} Ng4 29. h3 {[%emt 0:00:03]} Nf6 {[%emt 0:00:03]} 30. Kf1 {[%emt 0:00:04]} Nf8 {[%emt 0:00:01]} 31. Ke2 {[%emt 0:00:01]} N8d7 {[%emt 0:00:01]} 32. Bb4 {[%emt 0:00:04]} Ke7 {[%emt 0:00:03]} 33. Kf3 {[%emt 0:00:05]} b6 {[%emt 0:00:05]} 34. a4 {[%emt 0:00:04]} (34. g3 $14) 34... Nc5 {[%emt 0:00:04] The position is equal.} 35. Bxc5 {[%emt 0:00:04]} bxc5 {[%emt 0:00:01] KN-KN} 36. Nd3 {[%emt 0:00:12]} Nh7 {[%emt 0:00:03] [#] aiming for ...Ng5+.} 37. h4 {[%emt 0:00:10] Inhibits Ng5+.} Nf6 {[%emt 0:00:05]} 38. Nb2 {[%emt 0:00:08]} Ng4 {[%emt 0:00:06]} 39. Nc4 {[%emt 0:00:02]} Kd7 {[%emt 0:00:04]} 40. g3 {[%emt 0:00:08]} fxg3 {[%emt 0:00:06]} 41. Kxg3 {[%emt 0:00:01]} Nf6 {[%emt 0:00:01]} 42. Kf3 {[%emt 0:00:06]} Kc7 {[%emt 0:00:02]} 43. Ne3 {[%emt 0:00:02]} Kd7 {[%emt 0:00:05]} 44. Nf5 {[%emt 0:00:01]} Kc7 {[%emt 0:00:07]} 45. Ke3 {[%emt 0:00:06]} Kd7 {[%emt 0:00:00]} 46. Ng7 {[%emt 0:00:07]} Kc7 {[%emt 0:00:05]} 47. Nf5 {[%emt 0:00:02]} Kd7 {[%emt 0:00:00] Weighted Error Value: White=0.27 (precise) /Black=0.20 (precise)} 1/2-1/2